[Event "Championnat du monde jeunes U12"]
[Date "2024.11.20"]
[White "Xia, Jinnan"]
[Black "Karthi, Jashith"]
[WhiteElo "1850"]
[BlackElo "2073"]
[Round "6.23"]
[Result "0-1"]
[TimeControl "5400+30"]

1. d4 {[%clk 1:30:59]} 1... d5 {[%clk 1:30:55]} 2. c4 {[%clk 1:31:27]} 2... e6
{[%clk 1:31:20]} 3. Nc3 {[%clk 1:31:54]} 3... a6 {[%clk 1:31:44]} 4. Nf3 {[%clk
1:32:14]} 4... dxc4 {[%clk 1:32:06]} 5. e3 {[%clk 1:31:56]} 5... b5 {[%clk
1:32:30]} 6. a4 {[%clk 1:32:06]} 6... b4 {[%clk 1:32:38]} 7. Nb1 {[%clk
1:32:31]} 7... Bb7 {[%clk 1:29:11]} 8. Bxc4 {[%clk 1:32:54]} 8... Nf6 {[%clk
1:29:32]} 9. O-O {[%clk 1:33:03]} 9... Bd6 {[%clk 1:28:56]} 10. b3 {[%clk
1:29:57]} 10... Nbd7 {[%clk 1:25:51]} 11. Bb2 {[%clk 1:27:43]} 11... O-O {[%clk
1:19:59]} 12. Be2 {[%clk 1:26:37]} 12... c5 {[%clk 1:12:20]} 13. Nbd2 {[%clk
1:27:03]} 13... cxd4 {[%clk 1:11:18]} 14. Bxd4 {[%clk 1:21:54]} 14... Be7 {[%clk
1:06:47]} 15. a5 {[%clk 1:18:32]} 15... Nd5 {[%clk 1:05:18]} 16. Nc4 {[%clk
1:15:21]} 16... Bf6 {[%clk 0:33:40]} 17. Nd6 {[%clk 1:02:49]} 17... Qc7 {[%clk
0:29:41]} 18. Nxb7 {[%clk 1:03:01]} 18... Qxb7 {[%clk 0:30:07]} 19. Bxf6 {[%clk
0:52:14]} 19... N7xf6 {[%clk 0:30:35]} 20. Ne5 {[%clk 0:50:43]} 20... Nc3 {[%clk
0:30:18]} 21. Bf3 {[%clk 0:50:25]} 21... Qb5 {[%clk 0:26:44]} 22. Qd4 {[%clk
0:49:33]} 22... Rad8 {[%clk 0:26:37]} 23. Qf4 {[%clk 0:49:50]} 23... Nfd5 {[%clk
0:24:08]} 24. Qc4 {[%clk 0:46:08]} 24... Qxc4 {[%clk 0:23:37]} 25. Nxc4 {[%clk
0:46:12]} 25... Nc7 {[%clk 0:22:49]} 26. Ne5 {[%clk 0:43:58]} 26... N7d5 {[%clk
0:15:14]} 27. Rfc1 {[%clk 0:38:00]} 27... f6 {[%clk 0:04:32]} 28. Nd3 {[%clk
0:35:59]} 28... Rb8 {[%clk 0:02:56]} 29. Nc5 {[%clk 0:26:33]} 29... Rb5 {[%clk
0:01:02]} 30. Nxe6 {[%clk 0:23:23]} 30... Rc8 31. Nd4 {[%clk 0:23:22]} 31...
Rbb8 {[%clk 0:00:49]} 32. Kf1 {[%clk 0:19:47]} 32... Ne7 {[%clk 0:01:08]} 33.
Bg4 {[%clk 0:19:36]} 33... Rc5 {[%clk 0:01:24]} 34. Be6+ {[%clk 0:19:53]} 34...
Kh8 {[%clk 0:01:47]} 35. Bc4 {[%clk 0:18:38]} 35... Nc6 {[%clk 0:01:42]} 36.
Bxa6 {[%clk 0:13:02]} 36... Nxa5 {[%clk 0:02:10]} 37. Bd3 {[%clk 0:12:49]} 37...
g6 {[%clk 0:01:35]} 38. Ke1 {[%clk 0:09:46]} 38... Rd5 {[%clk 0:01:31]} 39. Be2
{[%clk 0:06:23]} 39... Rxd4 {[%clk 0:01:17]} 40. Rxa5 {[%clk 0:06:48]} 40... Rd7
{[%clk 0:01:35]} 41. Bf3 {[%clk 0:07:03]} 41... Kg7 {[%clk 0:01:25]} 42. Rca1
{[%clk 0:06:58]} 42... Rd6 {[%clk 0:01:09]} 43. Ra7+ {[%clk 0:06:57]} 43... Kh6
{[%clk 0:01:31]} 44. Rf7 {[%clk 0:06:22]} 44... Rbd8 {[%clk 0:01:44]} 45. Rb7
{[%clk 0:06:15]} 45... Rd2 {[%clk 0:01:45]} 46. Rxb4 {[%clk 0:05:48]} 46... Rb2
{[%clk 0:02:06]} 47. Kf1 {[%clk 0:02:25]} 47... Rdd2 {[%clk 0:02:04]} 48. Kg1
{[%clk 0:01:58]} 48... Na2 {[%clk 0:02:19]} 49. Rf4 {[%clk 0:01:23]} 49... Kg7
{[%clk 0:02:43]} 50. Bc6 {[%clk 0:00:58]} 50... Rxb3 {[%clk 0:02:41]} 51. h4
{[%clk 0:01:06]} 51... Rbb2 {[%clk 0:02:41]} 52. g4 {[%clk 0:00:47]} 52... h6
{[%clk 0:01:26]} 53. Bg2 {[%clk 0:00:51]} 53... g5 {[%clk 0:01:48]} 54. hxg5
{[%clk 0:01:17]} 54... hxg5 {[%clk 0:02:12]} 55. Rf5 {[%clk 0:01:45]} 55... Rdc2
{[%clk 0:02:27]} 56. Be4 {[%clk 0:01:45]} 56... Rc4 {[%clk 0:02:38]} 57. Bf3
{[%clk 0:01:37]} 57... Rcc2 {[%clk 0:03:00]} 58. Bd5 {[%clk 0:01:19]} 58... Rc1+
{[%clk 0:03:19]} 59. Rxc1 {[%clk 0:01:46]} 59... Nxc1 {[%clk 0:03:43]} 60. Bc4
{[%clk 0:01:30]} 60... Ne2+ {[%clk 0:04:03]} 61. Kg2 {[%clk 0:01:44]} 61... Nc3
{[%clk 0:04:28]} 62. Kf3 {[%clk 0:00:58]} 62... Nd1 {[%clk 0:04:32]} 63. Kg3
{[%clk 0:01:25]} 63... Nc3 {[%clk 0:04:52]} 64. f3 {[%clk 0:00:44]} 64... Nd1
{[%clk 0:05:07]} 65. Rd5 {[%clk 0:00:35]} 65... Nxe3 {[%clk 0:05:27]} 66. Rd7+
{[%clk 0:01:03]} 66... Kf8 {[%clk 0:05:13]} 67. Be6 {[%clk 0:01:15]} 67... Nf1+
{[%clk 0:05:38]} 68. Kh3 {[%clk 0:00:36]} 68... Rh2# {[%clk 0:06:04]} 0-1

[Variant "Standard"]
[Site "Europe Echecs"]

[Event "Championnat du monde jeunes U12"]
[Date "2024.11.20"]
[White "Minga-Nagy, Abel Inti"]
[Black "Anagnostopoulos, Panagiotis"]
[WhiteElo "2033"]
[BlackElo "1848"]
[Round "6.24"]
[Result "1-0"]
[TimeControl "5400+30"]

1. e4 {[%clk 1:30:55]} 1... e5 {[%clk 1:30:27]} 2. Nf3 {[%clk 1:31:19]} 2... Nc6
{[%clk 1:30:26]} 3. d4 {[%clk 1:31:44]} 3... exd4 {[%clk 1:30:14]} 4. Bc4 {[%clk
1:32:08]} 4... Nf6 {[%clk 1:29:51]} 5. O-O {[%clk 1:32:34]} 5... Nxe4 {[%clk
1:30:00]} 6. Re1 {[%clk 1:32:57]} 6... d5 {[%clk 1:30:20]} 7. Bxd5 {[%clk
1:33:25]} 7... Qxd5 {[%clk 1:30:43]} 8. Nc3 {[%clk 1:33:53]} 8... Qd7 {[%clk
1:30:46]} 9. Nxe4 {[%clk 1:34:16]} 9... Be7 {[%clk 1:31:06]} 10. Bg5 {[%clk
1:34:44]} 10... O-O {[%clk 1:31:12]} 11. Bxe7 {[%clk 1:35:06]} 11... Qxe7 {[%clk
1:31:29]} 12. Nxd4 {[%clk 1:34:32]} 12... Nxd4 {[%clk 1:31:24]} 13. Qxd4 {[%clk
1:35:00]} 13... Rd8 {[%clk 1:27:55]} 14. Qe3 {[%clk 1:33:10]} 14... Bf5 {[%clk
1:27:18]} 15. Qf3 {[%clk 1:30:33]} 15... Bg6 {[%clk 1:25:37]} 16. h3 {[%clk
1:22:08]} 16... Qb4 {[%clk 1:22:48]} 17. b3 {[%clk 1:21:03]} 17... Re8 {[%clk
1:21:32]} 18. c4 {[%clk 1:18:12]} 18... Rad8 {[%clk 1:19:51]} 19. Re2 {[%clk
1:08:47]} 19... Re7 {[%clk 1:17:38]} 20. a3 {[%clk 1:08:39]} 20... Qa5 {[%clk
1:15:31]} 21. Nf6+ {[%clk 1:06:28]} 21... Kf8 {[%clk 1:15:39]} 22. Rxe7 {[%clk
1:04:40]} 22... Kxe7 {[%clk 1:15:53]} 23. Nd5+ {[%clk 1:04:26]} 23... Kf8 {[%clk
1:15:49]} 24. Qe3 {[%clk 1:04:36]} 24... Re8 {[%clk 1:13:45]} 25. Qg3 {[%clk
0:50:15]} 25... c6 {[%clk 1:11:42]} 26. Qd6+ {[%clk 0:49:26]} 26... Kg8 {[%clk
1:11:25]} 27. Ne7+ {[%clk 0:46:29]} 27... Kh8 {[%clk 1:10:48]} 28. Qd7 {[%clk
0:46:57]} 28... Qd8 {[%clk 1:09:09]} 29. Nxg6+ {[%clk 0:47:17]} 29... fxg6
{[%clk 1:09:21]} 30. Qxb7 {[%clk 0:47:40]} 30... Qd4 {[%clk 1:07:27]} 31. Rf1
{[%clk 0:44:48]} 31... Qc5 {[%clk 1:06:23]} 32. a4 {[%clk 0:37:35]} 32... g5
{[%clk 1:04:50]} 33. Qc7 {[%clk 0:35:53]} 33... Rf8 {[%clk 1:03:57]} 34. Qg3
{[%clk 0:35:51]} 34... h6 {[%clk 1:03:42]} 35. Re1 {[%clk 0:34:09]} 35... Qf5
{[%clk 0:59:42]} 36. Qe3 {[%clk 0:30:57]} 36... Qf7 {[%clk 0:58:29]} 37. f3
{[%clk 0:30:05]} 37... Rb8 {[%clk 0:57:54]} 38. Qd3 {[%clk 0:29:48]} 38... Qc7
{[%clk 0:55:11]} 39. Qc2 {[%clk 0:29:13]} 39... Rd8 {[%clk 0:54:17]} 40. c5
{[%clk 0:27:14]} 40... Qd7 {[%clk 0:52:55]} 41. Kh1 {[%clk 0:27:12]} 41... Rb8
{[%clk 0:50:22]} 42. Rd1 {[%clk 0:26:52]} 42... Qe6 {[%clk 0:50:11]} 43. a5
{[%clk 0:25:19]} 43... Qg8 {[%clk 0:48:52]} 44. Rd6 {[%clk 0:24:55]} 44... Rxb3
{[%clk 0:47:36]} 45. Rxc6 {[%clk 0:25:05]} 45... Qb8 {[%clk 0:47:35]} 46. Rd6
{[%clk 0:23:23]} 46... Rb1+ {[%clk 0:47:51]} 47. Rd1 {[%clk 0:23:09]} 47...
Rxd1+ {[%clk 0:48:01]} 48. Qxd1 {[%clk 0:23:31]} 48... Qc7 {[%clk 0:48:17]} 49.
Qd6 {[%clk 0:23:40]} 49... Qxa5 {[%clk 0:48:29]} 50. c6 {[%clk 0:23:20]} 50...
Qa6 {[%clk 0:48:36]} 51. Qf8+ {[%clk 0:20:48]} 51... Kh7 {[%clk 0:49:01]} 52.
Qf5+ {[%clk 0:21:10]} 52... g6 {[%clk 0:48:24]} 53. Qf7+ {[%clk 0:21:29]} 53...
Kh8 {[%clk 0:48:50]} 54. c7 {[%clk 0:21:45]} 54... g4 {[%clk 0:48:21]} 55. Qe8+
{[%clk 0:20:06]} 55... Kg7 {[%clk 0:48:48]} 56. c8=Q {[%clk 0:20:08]} 1-0

[Variant "Standard"]
[Site "Europe Echecs"]

[Event "Championnat du monde jeunes U12"]
[Date "2024.11.20"]
[White "Marchand, Calix"]
[Black "Lee, Daniel Joshua"]
[WhiteElo "2027"]
[BlackElo "1765"]
[Round "6.25"]
[Result "1-0"]
[TimeControl "5400+30"]

1. a3 {[%clk 1:30:55]} 1... e5 {[%clk 1:30:32]} 2. c4 {[%clk 1:31:16]} 2... Nf6
{[%clk 1:30:32]} 3. Nc3 {[%clk 1:31:41]} 3... d5 {[%clk 1:28:26]} 4. cxd5 {[%clk
1:31:28]} 4... Nxd5 {[%clk 1:28:44]} 5. Nf3 {[%clk 1:31:53]} 5... Nc6 {[%clk
1:27:50]} 6. Qc2 {[%clk 1:32:22]} 6... Be6 {[%clk 1:21:15]} 7. e3 {[%clk
1:32:07]} 7... a6 {[%clk 1:19:51]} 8. b4 {[%clk 1:30:44]} 8... Nxc3 {[%clk
1:17:07]} 9. dxc3 {[%clk 1:31:10]} 9... Bd6 {[%clk 1:01:26]} 10. Bb2 {[%clk
1:29:10]} 10... O-O {[%clk 0:54:21]} 11. c4 {[%clk 1:26:39]} 11... f6 {[%clk
0:43:39]} 12. Bd3 {[%clk 1:22:31]} 12... g6 {[%clk 0:36:44]} 13. O-O-O {[%clk
1:16:47]} 13... Qe8 {[%clk 0:33:15]} 14. h4 Qf7 {[%clk 0:30:51]} 15. Qc3 {[%clk
1:11:10]} 15... Ne7 {[%clk 0:23:03]} 16. Be2 {[%clk 1:03:53]} 16... a5 {[%clk
0:10:50]} 17. b5 {[%clk 0:58:44]} 17... Rac8 {[%clk 0:06:52]} 18. Nd2 {[%clk
0:53:07]} 18... Rfd8 {[%clk 0:05:19]} 19. Ne4 {[%clk 0:52:54]} 19... b6 {[%clk
0:04:20]} 20. g4 {[%clk 0:50:22]} 20... Kg7 {[%clk 0:01:49]} 21. Rhf1 {[%clk
0:45:41]} 21... Ng8 {[%clk 0:00:46]} 22. f4 {[%clk 0:45:41]} 22... exf4 {[%clk
0:00:47]} 23. exf4 {[%clk 0:46:10]} 23... Be7 {[%clk 0:00:44]} 24. Ng5 {[%clk
0:45:57]} 24... Rxd1+ {[%clk 0:00:41]} 25. Rxd1 {[%clk 0:46:05]} 25... Qe8
{[%clk 0:00:43]} 26. Nxe6+ {[%clk 0:46:32]} 26... Kh8 {[%clk 0:00:36]} 27. f5
{[%clk 0:46:11]} 27... gxf5 {[%clk 0:00:49]} 28. gxf5 {[%clk 0:46:29]} 28... Nh6
{[%clk 0:00:49]} 29. Qf3 {[%clk 0:46:06]} 29... c6 {[%clk 0:00:49]} 30. bxc6
{[%clk 0:46:08]} 30... Qxc6 {[%clk 0:00:54]} 31. Qf4 {[%clk 0:43:54]} 31... Nf7
{[%clk 0:00:40]} 32. Rg1 {[%clk 0:42:48]} 32... Ne5 {[%clk 0:00:33]} 33. Qxe5
{[%clk 0:42:36]} 33... h6 {[%clk 0:00:34]} 34. Qg3 {[%clk 0:42:17]} 1-0

[Variant "Standard"]
[Site "Europe Echecs"]

[Event "Championnat du monde jeunes U12"]
[Date "2024.11.20"]
[White "Hallmundarson, Birkir"]
[Black "Elhusseiny, Eyad"]
[WhiteElo "1914"]
[BlackElo "2017"]
[Round "6.26"]
[Result "0-1"]
[TimeControl "5400+30"]

1. Nf3 {[%clk 1:30:58]} 1... Nf6 {[%clk 1:30:48]} 2. c4 {[%clk 1:31:11]} 2... e6
{[%clk 1:31:13]} 3. Nc3 {[%clk 1:31:33]} 3... d5 {[%clk 1:31:18]} 4. d4 {[%clk
1:31:58]} 4... Nbd7 {[%clk 1:30:33]} 5. Bg5 {[%clk 1:32:02]} 5... Be7 {[%clk
1:30:46]} 6. e3 {[%clk 1:32:16]} 6... O-O {[%clk 1:30:36]} 7. cxd5 {[%clk
1:30:35]} 7... exd5 {[%clk 1:30:56]} 8. Bd3 {[%clk 1:30:58]} 8... c6 {[%clk
1:31:19]} 9. O-O {[%clk 1:31:02]} 9... h6 {[%clk 1:30:46]} 10. Bh4 {[%clk
1:31:10]} 10... Ne4 {[%clk 1:30:13]} 11. Bxe7 {[%clk 1:31:05]} 11... Qxe7 {[%clk
1:30:35]} 12. Qc2 {[%clk 1:31:07]} 12... Re8 {[%clk 1:30:08]} 13. Rab1 {[%clk
1:28:47]} 13... a5 {[%clk 1:26:54]} 14. a3 {[%clk 1:28:40]} 14... g5 {[%clk
1:13:54]} 15. b4 {[%clk 1:24:01]} 15... axb4 {[%clk 1:11:07]} 16. axb4 {[%clk
1:24:23]} 16... b5 {[%clk 1:05:33]} 17. Ne2 {[%clk 0:54:29]} 17... Qd6 {[%clk
0:52:33]} 18. Ng3 {[%clk 0:54:17]} 18... Nxg3 {[%clk 0:50:04]} 19. hxg3 {[%clk
0:54:45]} 19... Nb6 {[%clk 0:49:26]} 20. Qc5 {[%clk 0:50:15]} 20... Qxc5 {[%clk
0:47:04]} 21. dxc5 {[%clk 0:50:38]} 21... Nd7 {[%clk 0:44:21]} 22. Ra1 {[%clk
0:50:06]} 22... Rxa1 {[%clk 0:37:56]} 23. Rxa1 {[%clk 0:50:33]} 23... Ne5 {[%clk
0:37:22]} 24. Nxe5 {[%clk 0:50:55]} 24... Rxe5 {[%clk 0:37:48]} 25. Ra8 {[%clk
0:51:10]} 25... Re8 {[%clk 0:38:14]} 26. Kf1 {[%clk 0:39:11]} 26... Kf8 {[%clk
0:38:16]} 27. Ke2 {[%clk 0:34:41]} 27... Bg4+ {[%clk 0:38:37]} 28. f3 {[%clk
0:34:35]} 28... Bxf3+ {[%clk 0:38:07]} 29. gxf3 {[%clk 0:32:17]} 29... Rxa8
{[%clk 0:38:33]} 30. e4 {[%clk 0:32:38]} 30... d4 {[%clk 0:37:49]} 31. e5 {[%clk
0:33:01]} 31... Ra2+ {[%clk 0:37:17]} 32. Ke1 {[%clk 0:33:24]} 32... Rb2 {[%clk
0:37:34]} 33. Be4 {[%clk 0:33:48]} 33... Rxb4 {[%clk 0:37:55]} 34. Bxc6 {[%clk
0:34:11]} 34... Rc4 {[%clk 0:38:19]} 35. Bxb5 {[%clk 0:34:23]} 35... Rxc5 {[%clk
0:38:44]} 36. Be2 {[%clk 0:34:44]} 36... Rxe5 {[%clk 0:39:10]} 37. Kd2 {[%clk
0:35:08]} 37... Ke7 {[%clk 0:39:25]} 38. Kd3 {[%clk 0:35:31]} 38... Re3+ {[%clk
0:39:49]} 39. Kd2 {[%clk 0:35:50]} 39... Kd6 {[%clk 0:40:13]} 40. g4 {[%clk
0:36:02]} 40... Ke5 {[%clk 0:40:39]} 41. Kd1 {[%clk 0:36:02]} 41... Kf4 {[%clk
0:41:03]} 42. Bc4 {[%clk 0:36:27]} 42... Kxf3 {[%clk 0:41:17]} 43. Bxf7 {[%clk
0:36:47]} 43... Kxg4 {[%clk 0:41:39]} 44. Kd2 {[%clk 0:37:09]} 44... h5 {[%clk
0:42:04]} 45. Bd5 {[%clk 0:37:35]} 45... h4 {[%clk 0:42:26]} 46. Bh1 {[%clk
0:37:56]} 46... h3 {[%clk 0:42:53]} 47. Bd5 {[%clk 0:38:17]} 47... h2 {[%clk
0:43:18]} 48. Ba8 {[%clk 0:38:29]} 48... Rf3 {[%clk 0:43:38]} 49. Bb7 {[%clk
0:38:30]} 49... h1=Q {[%clk 0:43:52]} 50. Ba6 {[%clk 0:38:55]} 50... Qg2+ {[%clk
0:44:16]} 51. Ke1 {[%clk 0:39:20]} 51... Re3+ {[%clk 0:44:33]} 52. Kd1 {[%clk
0:39:42]} 52... Qg1+ {[%clk 0:44:57]} 53. Kd2 {[%clk 0:40:08]} 53... Qf2+ {[%clk
0:45:22]} 54. Kd1 {[%clk 0:40:29]} 54... Re1# {[%clk 0:45:48]} 0-1

[Variant "Standard"]
[Site "Europe Echecs"]

[Event "Championnat du monde jeunes U12"]
[Date "2024.11.20"]
[White "Berdashkevich, Makar"]
[Black "Stepanyan, Davit"]
[WhiteElo "1848"]
[BlackElo "2011"]
[Round "6.27"]
[Result "0-1"]
[TimeControl "5400+30"]

1. e4 {[%clk 1:30:51]} 1... e6 {[%clk 1:30:52]} 2. d4 {[%clk 1:31:07]} 2... d5
{[%clk 1:31:17]} 3. Nc3 {[%clk 1:31:13]} 3... Bb4 {[%clk 1:28:45]} 4. e5 {[%clk
1:31:18]} 4... Ne7 {[%clk 1:29:02]} 5. a3 {[%clk 1:29:48]} 5... Bxc3+ {[%clk
1:29:25]} 6. bxc3 {[%clk 1:30:03]} 6... c5 {[%clk 1:29:53]} 7. a4 {[%clk
1:27:47]} 7... Qc7 {[%clk 1:29:04]} 8. Nf3 {[%clk 1:26:45]} 8... b6 {[%clk
1:29:17]} 9. Bb5+ {[%clk 1:22:00]} 9... Bd7 {[%clk 1:28:45]} 10. Bd3 {[%clk
1:18:17]} 10... h6 {[%clk 1:23:09]} 11. O-O {[%clk 1:03:12]} 11... Nbc6 {[%clk
1:23:07]} 12. h3 {[%clk 1:00:02]} 12... cxd4 {[%clk 1:20:15]} 13. cxd4 {[%clk
1:00:02]} 13... Nb4 {[%clk 1:19:59]} 14. Ba3 {[%clk 0:55:47]} 14... Nxd3 {[%clk
1:20:12]} 15. cxd3 {[%clk 0:45:00]} 15... Qd8 {[%clk 1:19:43]} 16. Qd2 {[%clk
0:41:34]} 16... O-O {[%clk 1:19:16]} 17. a5 {[%clk 0:39:47]} 17... bxa5 {[%clk
1:18:35]} 18. Bxe7 {[%clk 0:35:51]} 18... Qxe7 {[%clk 1:18:59]} 19. Rxa5 {[%clk
0:34:27]} 19... a6 {[%clk 1:18:19]} 20. Rc5 {[%clk 0:33:44]} 20... Bb5 {[%clk
1:13:40]} 21. Rfc1 {[%clk 0:29:59]} 21... Qb7 {[%clk 1:13:08]} 22. Ne1 {[%clk
0:27:41]} 22... Qb6 {[%clk 1:11:30]} 23. f4 {[%clk 0:23:38]} 23... Rfb8 {[%clk
1:10:02]} 24. Qb2 {[%clk 0:20:33]} 24... Qd8 {[%clk 1:04:49]} 25. Qa3 {[%clk
0:19:21]} 25... Qh4 {[%clk 1:04:19]} 26. Nc2 {[%clk 0:17:23]} 26... Qxf4 {[%clk
1:01:08]} 27. Rf1 {[%clk 0:15:52]} 27... Qd2 {[%clk 0:59:43]} 28. Rf3 {[%clk
0:11:16]} 28... Rc8 {[%clk 0:57:38]} 29. Qb3 {[%clk 0:08:05]} 29... Rab8 {[%clk
0:56:11]} 30. Ne3 {[%clk 0:06:30]} 30... Qxd3 {[%clk 0:52:13]} 31. Qb4 {[%clk
0:05:34]} 31... Be8 {[%clk 0:50:26]} 32. Qa5 {[%clk 0:03:04]} 32... Qxd4 {[%clk
0:49:44]} 33. Rxc8 {[%clk 0:03:07]} 33... Rxc8 {[%clk 0:50:08]} 34. Qxa6 {[%clk
0:01:18]} 34... Rc1+ {[%clk 0:50:25]} 35. Kf2 {[%clk 0:01:19]} 35... Qb2+ {[%clk
0:50:42]} 36. Kg3 {[%clk 0:01:21]} 36... Qxe5+ {[%clk 0:51:05]} 37. Kf2 {[%clk
0:01:48]} 37... d4 {[%clk 0:50:59]} 38. Nf1 {[%clk 0:01:58]} 38... Bb5 {[%clk
0:50:41]} 39. Qa8+ {[%clk 0:01:56]} 39... Kh7 {[%clk 0:51:04]} 40. Kg1 {[%clk
0:01:52]} 40... Rxf1+ {[%clk 0:50:57]} 41. Rxf1 {[%clk 0:02:15]} 41... Qe3+
{[%clk 0:51:12]} 42. Rf2 {[%clk 0:02:32]} 42... Qe1+ {[%clk 0:51:39]} 43. Kh2
{[%clk 0:02:57]} 43... Qxf2 {[%clk 0:52:03]} 44. Qe4+ {[%clk 0:03:04]} 44... f5
{[%clk 0:52:25]} 45. Qxe6 {[%clk 0:03:28]} 45... Bf1 {[%clk 0:52:46]} 46. Qd5
{[%clk 0:03:52]} 46... d3 {[%clk 0:53:07]} 47. h4 {[%clk 0:04:16]} 47... Qxg2+
{[%clk 0:53:27]} 48. Qxg2 {[%clk 0:04:40]} 48... Bxg2 {[%clk 0:53:54]} 49. Kxg2
{[%clk 0:05:03]} 49... d2 {[%clk 0:54:15]} 50. h5 {[%clk 0:05:24]} 50... d1=Q
51. Kf2 {[%clk 0:05:47]} 51... Qxh5 {[%clk 0:55:01]} 52. Ke3 {[%clk 0:06:10]}
52... g5 {[%clk 0:55:25]} 53. Kd4 {[%clk 0:06:35]} 53... f4 {[%clk 0:55:51]} 54.
Ke4 {[%clk 0:07:00]} 54... f3 {[%clk 0:56:17]} 55. Ke3 {[%clk 0:07:27]} 55... g4
{[%clk 0:56:42]} 56. Kf2 {[%clk 0:07:52]} 56... Qe5 {[%clk 0:57:06]} 57. Kf1
{[%clk 0:04:33]} 57... Qe2+ {[%clk 0:57:31]} 0-1

[Variant "Standard"]
[Site "Europe Echecs"]

[Event "Championnat du monde jeunes U12"]
[Date "2024.11.20"]
[White "Gao, Arthur"]
[Black "Dauren, Darmen"]
[WhiteElo "1979"]
[BlackElo "1820"]
[Round "6.28"]
[Result "1/2-1/2"]
[TimeControl "5400+30"]

1. e4 {[%clk 1:30:58]} 1... c5 {[%clk 1:30:14]} 2. Nf3 {[%clk 1:31:11]} 2... Nf6
{[%clk 1:30:21]} 3. e5 {[%clk 1:31:27]} 3... Nd5 {[%clk 1:30:46]} 4. Nc3 {[%clk
1:31:47]} 4... e6 {[%clk 1:31:10]} 5. Ne4 {[%clk 1:32:12]} 5... Nc6 {[%clk
1:24:50]} 6. c4 {[%clk 1:32:27]} 6... Nb6 {[%clk 1:24:23]} 7. d4 {[%clk
1:31:18]} 7... cxd4 {[%clk 1:18:10]} 8. Nd6+ {[%clk 1:31:38]} 8... Bxd6 {[%clk
1:17:22]} 9. exd6 {[%clk 1:32:03]} 9... e5 {[%clk 1:13:07]} 10. Bg5 {[%clk
1:18:38]} 10... f6 {[%clk 1:12:15]} 11. Bh4 {[%clk 1:14:13]} 11... Kf8 {[%clk
1:01:43]} 12. Qb3 {[%clk 0:40:22]} 12... Rb8 {[%clk 0:54:02]} 13. Bd3 {[%clk
0:34:29]} 13... Qe8 {[%clk 0:51:26]} 14. c5 {[%clk 0:28:00]} 14... Na8 {[%clk
0:51:26]} 15. O-O {[%clk 0:25:37]} 15... b6 {[%clk 0:52:42]} 16. cxb6 {[%clk
0:23:52]} 16... Nxb6 {[%clk 0:47:11]} 17. Nd2 {[%clk 0:20:53]} 17... g5 {[%clk
0:38:37]} 18. Bg3 {[%clk 0:20:28]} 18... Bb7 {[%clk 0:34:12]} 19. Rae1 {[%clk
0:14:49]} 19... Qf7 {[%clk 0:33:10]} 20. Qa3 {[%clk 0:13:31]} 20... Kg7 {[%clk
0:32:01]} 21. b4 {[%clk 0:09:16]} 21... Rhc8 {[%clk 0:22:08]} 22. Ne4 {[%clk
0:05:03]} 22... Nc4 {[%clk 0:15:57]} 23. Qb3 {[%clk 0:02:52]} 23... Ba6 {[%clk
0:10:24]} 24. a3 {[%clk 0:02:33]} 24... Rb6 {[%clk 0:09:32]} 25. Rc1 {[%clk
0:01:57]} 25... Nb8 {[%clk 0:09:12]} 26. a4 {[%clk 0:00:43]} 26... Nxd6 {[%clk
0:08:18]} 27. Qxf7+ {[%clk 0:01:01]} 27... Nxf7 {[%clk 0:08:03]} 28. b5 {[%clk
0:01:19]} 28... Rxc1 {[%clk 0:03:40]} 29. Rxc1 {[%clk 0:01:45]} 29... Bb7 {[%clk
0:04:02]} 30. a5 {[%clk 0:01:58]} 30... Rxb5 {[%clk 0:04:06]} 31. Bxb5 {[%clk
0:02:05]} 31... Bxe4 {[%clk 0:04:30]} 32. f3 {[%clk 0:01:12]} 32... Bc6 {[%clk
0:04:36]} 33. Bxc6 {[%clk 0:00:37]} 33... Nxc6 {[%clk 0:04:48]} 34. Be1 {[%clk
0:00:55]} 34... Nd6 {[%clk 0:04:48]} 35. Kf2 {[%clk 0:00:54]} 35... Kf7 {[%clk
0:05:09]} 36. Ke2 {[%clk 0:00:43]} 36... Ke6 {[%clk 0:05:11]} 37. Rc5 {[%clk
0:01:03]} 37... a6 {[%clk 0:05:07]} 38. Bd2 {[%clk 0:00:37]} 38... Nb5 {[%clk
0:05:14]} 39. Kd3 {[%clk 0:00:46]} 39... Kd6 {[%clk 0:05:29]} 40. Rc1 {[%clk
0:01:03]} 40... Kd5 {[%clk 0:05:19]} 41. g4 {[%clk 0:00:50]} 41... Nc7 {[%clk
0:05:17]} 42. h4 {[%clk 0:00:40]} 42... h6 {[%clk 0:05:28]} 43. h5 {[%clk
0:00:44]} 43... Nb5 {[%clk 0:05:03]} 44. Rb1 {[%clk 0:00:48]} 44... Kd6 {[%clk
0:05:03]} 45. Bb4+ {[%clk 0:00:32]} 45... Nxb4+ {[%clk 0:04:26]} 46. Rxb4 {[%clk
0:00:57]} 46... Ke7 {[%clk 0:03:13]} 47. Rc4 {[%clk 0:00:57]} 47... Kd8 {[%clk
0:02:50]} 48. Rc5 {[%clk 0:00:43]} 48... Nc3 {[%clk 0:02:36]} 49. Rc4 Nb5 {[%clk
0:02:55]} 50. Rc2 {[%clk 0:00:51]} 50... Nd6 {[%clk 0:02:13]} 51. Rb2 {[%clk
0:01:14]} 51... Nb5 {[%clk 0:02:36]} 52. Ke4 {[%clk 0:01:13]} 52... Nd6+ {[%clk
0:02:49]} 53. Kd3 {[%clk 0:00:49]} 53... Nb5 {[%clk 0:03:13]} 54. Rc2 {[%clk
0:00:43]} 54... Nc3 {[%clk 0:02:44]} 55. Rb2 {[%clk 0:01:02]} 55... Nb5 {[%clk
0:02:43]} 56. Rc2 {[%clk 0:00:32]} 56... Nc3 {[%clk 0:03:04]} 57. Rb2 {[%clk
0:00:51]} 57... Nb5 {[%clk 0:03:17]} 58. Ke4 {[%clk 0:00:36]} 58... Nd6+ {[%clk
0:03:32]} 59. Kd3 {[%clk 0:00:36]} 59... Nb5 {[%clk 0:03:54]} 60. Rb1 {[%clk
0:00:31]} 60... d5 {[%clk 0:03:53]} 61. Rc1 {[%clk 0:00:51]} 1/2-1/2

[Variant "Standard"]
[Site "Europe Echecs"]